[Event "FRA-ch Women 2018"]
[Site "Nimes"]
[Date "2018.08.24"]
[Round "7"]
[White "Bollengier, Andreea"]
[Black "Milliet, Sophie"]
[Result "0-1"]
[ECO "A48"]
[WhiteElo "2219"]
[BlackElo "2389"]
[Annotator "NA"]
[PlyCount "50"]
[EventDate "2018.08.18"]
[EventType "tourn"]
[EventCountry "FRA"]
[SourceTitle "playchess.com"]
[Source "ChessBase"]
[SourceQuality "1"]
[TimeControl "40/5400+30:1800+30"]

1. d4 Nf6 {[%emt 0:01:51]} 2. Nf3 {[%emt 0:00:11]} g6 {[%emt 0:00:05]} 3. Bg5 {[%emt 0:00:06]} Bg7 {[%emt 0:00:08]} 4. Nbd2 {[%emt 0:01:17]} O-O {[%emt 0:01:11]} 5. e4 {[%emt 0:02:31]} d5 {[%emt 0:00:33]} 6. exd5 {[%emt 0:04:14]} Nxd5 {[%emt 0:00:48]} 7. Bc4 {[%emt 0:04:31] A48: 1 d4 Nf6 2 Nf3 g6: Torre, London and Colle Systems} (7. c3 c5 8. dxc5 h6 9. Bh4 Nf4 10. Nb3 Qc7 11. Bg3 Rd8 12. Nfd4 Qe5+ 13. Qe2 Qxd4 14. Nxd4 Nxe2 15. Bxe2 Bxd4 16. cxd4 {½-½ (88) Zeng,C (2542)-Bai,J (2586) Xinghua 2018}) 7... c5 {[%emt 0:09:33] LiveBook: 3 Games} 8. O-O {[%emt 0:05:34]} (8. dxc5 $11 {remains equal.} Bxb2 9. O-O) 8... cxd4 {[%emt 0:03:48]} 9. Bxd5 {[%emt 0:00:24]} Qxd5 {[%emt 0:00:08]} 10. Bxe7 {[%emt 0:00:06]} Re8 {[%emt 0:00:03]} 11. Ba3 {[%emt 0:06:06]} Nc6 {[%emt 0:01:45]} 12. Re1 $146 {[%emt 0:08:51]} ({Predecessor:} 12. b3 Bf5 13. Nc4 Rad8 14. Re1 Rxe1+ 15. Nxe1 {0-1 (34) Leal,A-Sisniega,M (2420) Mexico City 1980}) 12... Bf5 {[%emt 0:06:53]} 13. h3 {[%emt 0:06:52]} (13. Nf1 $17) 13... b5 {[%emt 0:05:05]} 14. b4 {[%emt 0:06:13]} d3 {[%emt 0:05:06]} 15. cxd3 {[%emt 0:00:24]} Qxd3 {[%emt 0:01:35]} 16. Nb3 $19 {[%emt 0:02:29]} Bxa1 {[%emt 0:04:09]} 17. Qxa1 {[%emt 0:00:05]} Rxe1+ {[%emt 0:01:01]} 18. Qxe1 {[%emt 0:05:36]} Rd8 {[%emt 0:00:53]} 19. Kh2 {[%emt 0:01:59]} Qd6+ {[%emt 0:04:08]} 20. g3 {[%emt 0:00:04]} Qd3 {[%emt 0:07:21]} 21. Nh4 {[%emt 0:22:15]} Be6 {[%emt 0:04:24]} 22. Bc1 {[%emt 0:03:05]} Qd1 {[%emt 0:11:58]} 23. Qc3 {[%emt 0:05:30]} Bd5 {[%emt 0:01:07]} 24. g4 {[%emt 0:01:19]} Qh1+ {[%emt 0:00:41]} 25. Kg3 {[%emt 0:00:04]} Qg1+ {[%emt 0:00:04]} 0-1

[Event "FRA-ch Women 2018"]
[Site "Nimes"]
[Date "2018.08.24"]
[Round "7"]
[White "Haussernot, Cecile"]
[Black "Afraoui, Anaelle"]
[Result "0-1"]
[ECO "B68"]
[WhiteElo "2198"]
[BlackElo "2041"]
[Annotator "NA"]
[PlyCount "68"]
[EventDate "2018.08.18"]
[EventType "tourn"]
[EventCountry "FRA"]
[SourceTitle "playchess.com"]
[Source "ChessBase"]
[SourceQuality "1"]
[TimeControl "40/5400+30:1800+30"]

1. e4 {[%emt 0:06:29]} c5 {[%emt 0:00:00]} 2. Nf3 {[%emt 0:00:29]} Nc6 {[%emt 0:00:00]} 3. d4 {[%emt 0:00:13]} cxd4 {[%emt 0:00:00]} 4. Nxd4 {[%emt 0:00:07]} Nf6 5. Nc3 {[%emt 0:00:06]} d6 {[%emt 0:04:05]} 6. Bg5 {[%emt 0:00:30]} e6 {[%emt 0:00:47]} 7. Qd2 {[%emt 0:00:04]} Be7 {[%emt 0:00:58]} 8. O-O-O {[%emt 0:04:12]} a6 {[%emt 0:02:46]} 9. f4 {[%emt 0:00:55]} Bd7 {[%emt 0:04:01]} 10. Nf3 {[%emt 0:05:57]} h6 {[%emt 0:02:45]} 11. Bh4 {[%emt 0:01:33]} b5 {[%emt 0:04:28] B67: Sicilian: Richter-Rauzer: 7...a6 8 0-0-0 Bd7, lines without 9 f4 Be7} 12. Bd3 {[%emt 0:03:38]} (12. Bxf6 gxf6 13. Kb1 Qb6 14. Bd3 O-O-O 15. Rhe1 Kb8 16. Ne2 Bc8 17. f5 Ne5 18. Nf4 Rhg8 19. fxe6 fxe6 {½-½ (34) Kraemer,M (2570)-Tazbir,M (2521) Germany 2017}) 12... b4 {[%emt 0:05:47]} 13. Ne2 {[%emt 0:00:39]} Qa5 {[%emt 0:02:47]} 14. Kb1 {[%emt 0:00:35]} Rd8 {[%emt 0:05:41]} 15. Nc1 $146 {[%emt 0:11:01]} ({Predecessor:} 15. Rhe1 e5 16. Bf2 Be6 17. Nc1 exf4 18. Qxf4 O-O 19. Nb3 {0-1 (41) Rantala,J-Raisa,U (2260) Finland 1993}) 15... Qb6 {[%emt 0:04:27]} 16. Qe2 {[%emt 0:08:14]} a5 {[%emt 0:02:02]} 17. g4 {[%emt 0:03:41]} Na7 {[%emt 0:08:34]} 18. g5 {[%emt 0:06:11]} hxg5 {[%emt 0:04:02]} 19. Bf2 $14 {[%emt 0:01:29]} Qb8 {[%emt 0:01:00]} 20. Nxg5 {[%emt 0:02:14]} Nb5 {[%emt 0:02:32]} 21. e5 {[%emt 0:01:09]} dxe5 {[%emt 0:09:46]} 22. Nxf7 {[%emt 0:21:39]} Kxf7 {[%emt 0:08:55]} 23. fxe5 {[%emt 0:00:10]} Nd5 {[%emt 0:03:57]} 24. Qg4 {[%emt 0:00:44]} Qxe5 {[%emt 0:04:29]} 25. Qg6+ {[%emt 0:06:38]} Kg8 {[%emt 0:01:15]} 26. Bxb5 {[%emt 0:01:47]} Bxb5 {[%emt 0:01:49]} 27. Bd4 {[%emt 0:00:09]} Nf4 {[%emt 0:01:06]} 28. Qg1 {[%emt 0:00:04]} Qg5 {[%emt 0:00:17]} 29. Qe3 {[%emt 0:00:05]} Rh7 {[%emt 0:05:03]} 30. Rhg1 {[%emt 0:01:55]} Qf5 {[%emt 0:00:49]} 31. Qg3 {[%emt 0:01:31]} e5 {[%emt 0:00:49]} 32. Bb6 {[%emt 0:02:06]} Rxd1 {[%emt 0:00:46]} 33. Rxd1 {[%emt 0:00:04]} a4 {[%emt 0:01:00]} 34. Qe3 {[%emt 0:01:03]} Rxh2 0-1

[Event "FRA-ch Women 2018"]
[Site "Nimes"]
[Date "2018.08.24"]
[Round "7"]
[White "Safranska, Anda"]
[Black "Benmesbah, Natacha"]
[Result "0-1"]
[ECO "B20"]
[WhiteElo "2193"]
[BlackElo "2255"]
[Annotator "NA"]
[PlyCount "90"]
[EventDate "2018.08.18"]
[EventType "tourn"]
[EventCountry "FRA"]
[SourceTitle "playchess.com"]
[Source "ChessBase"]
[SourceQuality "1"]
[TimeControl "40/5400+30:1800+30"]

1. e4 {[%emt 0:00:00]} c5 {[%emt 0:00:00]} 2. g3 {[%emt 0:00:02]} d5 {[%emt 0:03:47]} 3. exd5 {[%emt 0:00:06]} Qxd5 {[%emt 0:00:05]} 4. Nf3 {[%emt 0:00:08]} Bg4 {[%emt 0:01:48]} 5. Bg2 {[%emt 0:00:05]} Nc6 {[%emt 0:00:46]} 6. h3 {[%emt 0:00:06]} Qe6+ {[%emt 0:03:07]} 7. Kf1 {[%emt 0:00:06] LiveBook: 194 Partien} Bh5 {[%emt 0:01:35]} 8. d3 {[%emt 0:00:12]} Qd7 {[%emt 0:04:31]} 9. Na3 {[%emt 0:03:07]} e5 {[%emt 0:09:24] B20: Sicilian: Unusual White 2nd moves} (9... f6 10. Be3 e6 11. Kg1 Bd6 12. Nc4 Nge7 13. Nfe5 Nxe5 14. Qxh5+ g6 15. Nxd6+ Qxd6 16. Qe2 Nd5 17. Bh6 {1-0 (28) Morozevich,A (2711)-Zvjaginsev,V (2660) Moscow 2015}) 10. Nxe5 $2 $146 {[%emt 0:03:03]} (10. Bd2 $11) ({Predecessor:} 10. Be3 Nf6 11. Nc4 Bd6 12. g4 Bg6 13. Nh4 Be7 14. Nxg6 hxg6 15. Qf3 O-O 16. Re1 Rad8 17. Kg1 {0-1 (61) Arakhamia Grant,K (2347)-Bodnaruk,A (2460) Stary Smokovec 2018}) 10... Bxd1 {[%emt 0:00:26]} 11. Nxd7 {[%emt 0:00:03]} Kxd7 {[%emt 0:00:19]} 12. g4 {[%emt 0:21:28]} Nd4 {[%emt 0:02:08]} 13. c3 {[%emt 0:00:26]} Nc2 {[%emt 0:02:17]} 14. Bxb7 {[%emt 0:07:54]} Rb8 {[%emt 0:01:33]} ({Worse is} 14... Nxa1 15. Bxa8 Nc2 16. Kg2 $11) 15. Nxc2 {[%emt 0:01:39]} Rxb7 {[%emt 0:00:07]} 16. Ne1 {[%emt 0:00:28]} Ba4 {[%emt 0:00:32]} 17. b3 {[%emt 0:00:27]} Bc6 {[%emt 0:00:12]} 18. f3 {[%emt 0:00:05]} Bd6 {[%emt 0:01:57]} 19. Kf2 {[%emt 0:00:09]} Ne7 {[%emt 0:00:32]} 20. Ng2 {[%emt 0:00:34]} Nd5 {[%emt 0:02:34]} 21. Bd2 {[%emt 0:00:20]} Re8 {[%emt 0:00:51]} 22. Rab1 {[%emt 0:02:19]} Kc8 {[%emt 0:00:40]} 23. Rhe1 {[%emt 0:01:17]} Rbe7 {[%emt 0:00:29]} 24. Rxe7 {[%emt 0:00:10]} Rxe7 {[%emt 0:00:04]} 25. a3 {[%emt 0:00:10]} f6 {[%emt 0:04:00]} 26. b4 {[%emt 0:06:55]} g5 {[%emt 0:02:38]} 27. c4 {[%emt 0:01:15]} Nf4 {[%emt 0:00:17]} 28. Nxf4 {[%emt 0:01:47]} Bxf4 {[%emt 0:00:04]} 29. Re1 {[%emt 0:01:49]} Rxe1 {[%emt 0:05:33]} 30. Bxe1 {[%emt 0:00:04]} Be5 {[%emt 0:00:13]} 31. b5 {[%emt 0:00:14]} Bb7 {[%emt 0:03:32]} 32. a4 {[%emt 0:00:05]} Kd7 {[%emt 0:02:15]} 33. Ke2 {[%emt 0:00:59]} Ke6 $17 {[%emt 0:01:22]} 34. Bf2 {[%emt 0:00:09]} Kd6 {[%emt 0:01:31]} 35. Be1 {[%emt 0:00:06]} a6 {[%emt 0:02:06]} 36. Ke3 {[%emt 0:00:51]} axb5 {[%emt 0:01:37]} 37. axb5 {[%emt 0:00:04]} Bc8 {[%emt 0:06:16]} 38. Ke2 {[%emt 0:00:08]} h5 {[%emt 0:02:08]} 39. Bd2 {[%emt 0:05:07]} h4 {[%emt 0:02:14]} 40. Be3 {[%emt 0:01:34]} Bd4 {[%emt 0:02:48]} 41. Bd2 {[%emt 0:30:15]} Ke5 {[%emt 0:31:06]} 42. Bc1 {[%emt 0:00:24]} Bb7 {[%emt 0:00:59]} 43. Bd2 {[%emt 0:00:11]} Ke6 {[%emt 0:03:00]} 44. Bc1 {[%emt 0:01:16]} Kf7 {[%emt 0:01:21]} 45. f4 {[%emt 0:06:40]} f5 {[%emt 0:08:33]} 0-1

[Event "FRA-ch Women 2018"]
[Site "Nimes"]
[Date "2018.08.24"]
[Round "7"]
[White "Monpeurt, Cyrielle"]
[Black "Guichard, Pauline"]
[Result "0-1"]
[ECO "C24"]
[WhiteElo "2175"]
[BlackElo "2365"]
[Annotator "NA"]
[PlyCount "70"]
[EventDate "2018.08.18"]
[EventType "tourn"]
[EventCountry "FRA"]
[SourceTitle "playchess.com"]
[Source "ChessBase"]
[SourceQuality "1"]
[TimeControl "40/5400+30:1800+30"]

1. e4 {[%emt 0:00:00]} e5 {[%emt 0:00:00]} 2. Bc4 {[%emt 0:00:00]} Nf6 {[%emt 0:01:13]} 3. d3 {[%emt 0:00:14]} Nc6 {[%emt 0:01:58]} 4. Nc3 {[%emt 0:00:26]} Na5 {[%emt 0:06:31]} 5. Qf3 {[%emt 0:00:48]} c6 {[%emt 0:06:59] C28: Vienna Game: 2...Nf6 3 Bc4 Nc6} (5... Nxc4 6. dxc4 Bb4 7. Nge2 d6 8. h3 Be6 9. b3 Nd7 10. O-O Bxc3 11. Nxc3 O-O 12. Qg3 f5 13. Bg5 {½-½ (33) Caruana,F (2822)-Aronian,L (2767) chess.com INT 2018}) 6. Nge2 {[%emt 0:05:54]} b5 {[%emt 0:08:38] LiveBook: 6 Games} 7. Bb3 {[%emt 0:00:05]} Bc5 {[%emt 0:00:09]} 8. h3 {[%emt 0:07:06]} d6 {[%emt 0:03:15]} 9. Ng3 {[%emt 0:07:29]} Nxb3 {[%emt 0:07:02]} 10. axb3 {[%emt 0:00:06]} Be6 $146 {[%emt 0:00:03]} ({Predecessor:} 10... h6 11. O-O O-O 12. Nce2 Re8 13. Nf5 Bxf5 14. Qxf5 {½-½ (41) Klek,H (2327)-Motycakova,M (2207) Stary Smokovec 2018}) 11. Nf5 {[%emt 0:03:15]} Bxf5 {[%emt 0:00:37]} 12. Qxf5 {[%emt 0:00:02]} Qd7 {[%emt 0:01:06]} 13. Qg5 {[%emt 0:05:52]} O-O {[%emt 0:00:38]} 14. O-O {[%emt 0:01:48]} a5 {[%emt 0:02:45]} 15. Kh1 {[%emt 0:02:10]} Ne8 {[%emt 0:04:35]} 16. f4 {[%emt 0:07:18]} f6 $11 {[%emt 0:00:13]} 17. Qh4 {[%emt 0:00:31]} Nc7 {[%emt 0:01:07]} 18. Ne2 {[%emt 0:06:24]} d5 {[%emt 0:03:10]} 19. f5 {[%emt 0:14:44]} Ne8 {[%emt 0:05:32]} 20. Ng3 {[%emt 0:00:24]} Nd6 {[%emt 0:09:17]} 21. Bd2 {[%emt 0:02:26]} a4 {[%emt 0:00:54]} 22. b4 {[%emt 0:08:48]} Bd4 {[%emt 0:01:24]} 23. Ra2 {[%emt 0:03:08]} dxe4 {[%emt 0:03:41]} 24. Nxe4 {[%emt 0:03:43]} Nxf5 {[%emt 0:07:17]} 25. Qg4 {[%emt 0:00:05]} g6 {[%emt 0:00:24]} 26. b3 {[%emt 0:04:03]} Kh8 {[%emt 0:05:14]} 27. Qf3 {[%emt 0:04:31]} Qe6 {[%emt 0:02:17]} 28. c3 {[%emt 0:02:21]} Bb6 {[%emt 0:03:44]} 29. g4 {[%emt 0:00:32]} Nh4 {[%emt 0:03:30]} 30. Qg3 {[%emt 0:00:08]} g5 {[%emt 0:00:49]} 31. Raa1 {[%emt 0:02:00]} axb3 {[%emt 0:02:48]} 32. Rxa8 {[%emt 0:03:17]} Rxa8 {[%emt 0:00:04]} 33. Nxf6 {[%emt 0:02:10]} b2 {[%emt 0:02:53]} 34. Nh5 {[%emt 0:01:16]} b1=Q {[%emt 0:02:16]} 35. Rxb1 {[%emt 0:00:11]} Qd5+ {[%emt 0:00:06]} 0-1

[Event "FRA-ch Women 2018"]
[Site "Nimes"]
[Date "2018.08.25"]
[Round "8"]
[White "Afraoui, Anaelle"]
[Black "Safranska, Anda"]
[Result "0-1"]
[ECO "B06"]
[WhiteElo "2041"]
[BlackElo "2193"]
[Annotator "NA RC"]
[PlyCount "110"]
[EventDate "2018.08.18"]
[EventType "tourn"]
[EventCountry "FRA"]
[SourceTitle "playchess.com"]
[Source "ChessBase"]
[SourceQuality "1"]
[TimeControl "40/5400+30:1800+30"]

1. e4 {[%emt 0:00:00]} g6 {[%emt 0:00:00]} 2. d4 {[%emt 0:00:00]} Bg7 {[%emt 0:00:00]} 3. Nc3 {[%emt 0:00:00]} c6 {[%emt 0:00:00]} 4. Nf3 {[%emt 0:00:30]} d6 {[%emt 0:00:20]} 5. Be3 {[%emt 0:01:39]} b5 {[%emt 0:02:20]} 6. Bd3 {[%emt 0:01:11]} Nd7 {[%emt 0:04:49]} 7. Qd2 {[%emt 0:01:16]} a6 {[%emt 0:01:24]} 8. O-O {[%emt 0:03:24]} e5 {[%emt 0:02:49]} 9. a4 {[%emt 0:03:19]} b4 {[%emt 0:08:46]} 10. Ne2 {[%emt 0:02:34]} a5 {[%emt 0:16:21]} 11. c3 {[%emt 0:08:32]} bxc3 {[%emt 0:01:08]} 12. Nxc3 {[%emt 0:01:22]} Ngf6 {[%emt 0:01:16]} 13. h3 {[%emt 0:07:12]} O-O {[%emt 0:00:17]} 14. Rfd1 {[%emt 0:00:43]} Qe7 {[%emt 0:01:49]} 15. Rac1 {[%emt 0:03:21]} Ba6 {[%emt 0:00:50]} 16. Bxa6 {[%emt 0:08:28]} Rxa6 {[%emt 0:00:04]} 17. Qe2 {[%emt 0:01:28]} Raa8 {[%emt 0:00:22]} 18. dxe5 {[%emt 0:02:48]} dxe5 {[%emt 0:01:57]} 19. Nd2 {[%emt 0:01:25]} Rfb8 {[%emt 0:02:22]} 20. Nc4 {[%emt 0:05:57]} Nc5 {[%emt 0:00:47]} 21. Rd6 {[%emt 0:08:37]} Nb3 {[%emt 0:14:14]} 22. Rcd1 {[%emt 0:02:16]} Qc7 {[%emt 0:14:56]} 23. Qf3 {[%emt 0:13:22]} Rb4 {[%emt 0:04:53]} 24. Bb6 {[%emt 0:05:03]} Rxb6 {[%emt 0:03:05]} 25. Nxb6 {[%emt 0:02:09]} Qxb6 {[%emt 0:00:20]} 26. Nb5 {[%emt 0:02:50]} Nc5 {[%emt 0:13:33]} 27. Nc3 {[%emt 0:04:03]} Ne6 {[%emt 0:00:39]} 28. Nd5 {[%emt 0:02:20]} Nxd5 {[%emt 0:00:05]} 29. exd5 {[%emt 0:00:34]} Nd4 {[%emt 0:00:06]} 30. Qe4 {[%emt 0:01:01]} Qc5 {[%emt 0:01:44]} 31. Rd7 {[%emt 0:01:08]} cxd5 {[%emt 0:00:53]} 32. Rxd5 {[%emt 0:00:45]} Qa7 {[%emt 0:00:49]} 33. Rc1 {[%emt 0:01:52]} Rb8 {[%emt 0:01:49]} 34. Rcc5 {[%emt 0:01:13]} Qb6 {[%emt 0:00:36]} 35. Rxa5 {[%emt 0:01:29]} Qxb2 {[%emt 0:00:13]} 36. Rd7 {[%emt 0:00:44]} Ne2+ {[%emt 0:00:40]} 37. Kh2 {[%emt 0:00:23]} Nf4 {[%emt 0:00:27]} 38. Qc4 {[%emt 0:00:44]} Ne6 {[%emt 0:00:23]} 39. f3 {[%emt 0:02:35]} Qf2 {[%emt 0:01:14]} 40. Raa7 {[%emt 0:00:47]} Rb2 {[%emt 0:00:26]} 41. Qg4 {[%emt 0:12:33]} h5 {[%emt 0:09:12]} 42. Qg3 {[%emt 0:00:14]} Qxg3+ {[%emt 0:01:57]} 43. Kxg3 {[%emt 0:00:05]} h4+ {[%emt 0:03:01]} 44. Kh2 {[%emt 0:02:40]} Bh6 {[%emt 0:00:07]} 45. Rab7 {[%emt 0:02:07]} Ra2 {[%emt 0:02:21]} 46. Rb8+ {[%emt 0:06:02]} Kg7 {[%emt 0:00:41]} 47. Rbb7 {[%emt 0:01:31]} Bf4+ {[%emt 0:01:11]} 48. Kg1 {[%emt 0:00:11]} Ng5 {[%emt 0:03:54]} 49. Rb4 {[%emt 0:03:06]} Bg3 {[%emt 0:01:29]} 50. Kf1 {[%emt 0:03:05]} Ne6 {[%emt 0:00:42]} 51. Rbb7 {[%emt 0:01:38]} Nf4 {[%emt 0:02:31]} 52. Rxf7+ {[%emt 0:01:37]} Kh6 {[%emt 0:00:03]} 53. Rxf4 {[%emt 0:01:55]} Bxf4 {[%emt 0:00:37]} 54. Ra7 {[%emt 0:00:23]} Be3 {[%emt 0:00:08]} 55. Ra5 {[%emt 0:00:46]} Bd4 {[%emt 0:00:04]} 0-1

[Event "FRA-ch Women 2018"]
[Site "Nimes"]
[Date "2018.08.26"]
[Round "9"]
[White "Guichard, Pauline"]
[Black "Benmesbah, Natacha"]
[Result "1-0"]
[ECO "A30"]
[WhiteElo "2365"]
[BlackElo "2255"]
[Annotator "NA"]
[PlyCount "67"]
[EventDate "2018.08.18"]
[EventType "tourn"]
[EventCountry "FRA"]
[SourceTitle "playchess.com"]
[Source "ChessBase"]
[SourceQuality "1"]
[TimeControl "40/5400+30:1800+30"]

1. Nf3 {[%emt 0:00:00]} c5 {[%emt 0:00:58]} 2. c4 {[%emt 0:00:00]} Nf6 {[%emt 0:00:59]} 3. g3 {[%emt 0:00:22]} b6 {[%emt 0:00:07]} 4. Bg2 {[%emt 0:01:01]} Bb7 {[%emt 0:00:04]} 5. Nc3 {[%emt 0:04:21]} e6 {[%emt 0:00:08]} 6. d4 {[%emt 0:00:38]} cxd4 {[%emt 0:03:28]} 7. Qxd4 {[%emt 0:01:24]} Be7 {[%emt 0:07:10]} 8. O-O {[%emt 0:01:27]} d6 {[%emt 0:06:55]} 9. Rd1 {[%emt 0:02:51]} a6 {[%emt 0:05:58]} 10. b3 {[%emt 0:02:58]} Nbd7 {[%emt 0:00:58]} 11. e4 {[%emt 0:01:01]} Qc7 {[%emt 0:00:59]} 12. Ba3 {[%emt 0:01:34] A30: Englische Eröffnung (Symmetrische Variante)} Nc5 {[%emt 0:01:22]} 13. e5 {[%emt 0:01:11] LiveBook: 110 Games} dxe5 {[%emt 0:05:38]} 14. Qxe5 {[%emt 0:02:32]} Rc8 {[%emt 0:04:53]} (14... Qxe5 15. Nxe5 Bxg2 16. Kxg2 Rc8 17. Rd4 Ncd7 18. Nxd7 Nxd7 19. Rad1 Rc7 {1-0 (27) Edouard,R (2619)-Sarakauskas,G (2416) England 2018}) 15. Bc1 {[%emt 0:18:08]} O-O {[%emt 0:27:35]} 16. Qxc7 {[%emt 0:00:54]} Rxc7 {[%emt 0:00:04]} 17. Bf4 {[%emt 0:00:09]} Rcc8 {[%emt 0:00:34]} 18. Bd6 {[%emt 0:05:31]} Bxd6 $146 {[%emt 0:05:02]} ({Vorgänger:} 18... Rfe8 19. Bxe7 Rxe7 20. Ne5 Bxg2 21. Kxg2 g6 22. Rd6 Rb7 23. Rad1 Rcc7 24. Rd8+ {½-½ (41) Kljucharev,S (2375)-Siuniakov,I (2313) Kemerovo 2011}) 19. Rxd6 {[%emt 0:00:12]} Rfd8 {[%emt 0:00:12]} 20. Rad1 {[%emt 0:11:39]} Rxd6 {[%emt 0:00:15]} 21. Rxd6 {[%emt 0:00:05]} Ncd7 {[%emt 0:00:04]} 22. Ne5 {[%emt 0:05:47]} Bxg2 {[%emt 0:07:57]} 23. Nxd7 {[%emt 0:01:11]} Nxd7 {[%emt 0:00:11]} 24. Kxg2 {[%emt 0:01:48]} Rc7 {[%emt 0:00:14]} 25. Na4 {[%emt 0:05:10]} b5 {[%emt 0:00:12]} 26. Nb6 {[%emt 0:07:43]} Nf8 {[%emt 0:00:05]} 27. a4 {[%emt 0:01:22]} bxc4 {[%emt 0:06:50]} 28. Nxc4 {[%emt 0:00:07]} Ra7 {[%emt 0:00:33]} 29. b4 {[%emt 0:03:53]} f6 {[%emt 0:04:02]} (29... g5 $16) 30. b5 {[%emt 0:00:59]} axb5 {[%emt 0:01:05]} 31. axb5 {[%emt 0:00:05]} Rc7 {[%emt 0:01:41]} 32. Rc6 {[%emt 0:01:23]} Rb7 {[%emt 0:04:05]} (32... Rxc6 $142 33. bxc6 Ng6) 33. b6 {[%emt 0:00:13]} Rb8 {[%emt 0:00:14]} 34. Rc7 $18 {[%emt 0:02:25]} 1-0

[Event "FRA-ch Women 2018"]
[Site "Nimes"]
[Date "2018.08.26"]
[Round "9"]
[White "Leconte, Maria"]
[Black "Milliet, Sophie"]
[Result "1/2-1/2"]
[ECO "B40"]
[WhiteElo "2224"]
[BlackElo "2389"]
[Annotator "NA"]
[PlyCount "95"]
[EventDate "2018.08.18"]
[EventType "tourn"]
[EventCountry "FRA"]
[SourceTitle "playchess.com"]
[Source "ChessBase"]
[SourceQuality "1"]
[TimeControl "40/5400+30:1800+30"]

1. e4 {[%emt 0:00:00]} c5 {[%emt 0:00:00]} 2. Nf3 {[%emt 0:00:00]} e6 {[%emt 0:00:00]} 3. c3 {[%emt 0:00:00]} Nf6 {[%emt 0:00:00]} 4. e5 {[%emt 0:00:00]} Nd5 {[%emt 0:00:00]} 5. d4 {[%emt 0:00:00]} cxd4 {[%emt 0:00:00]} 6. cxd4 {[%emt 0:00:00]} d6 {[%emt 0:00:00]} 7. Bc4 {[%emt 0:00:11]} Be7 {[%emt 0:00:12]} 8. O-O {[%emt 0:02:31] B22: Sicilian: 2 c3} O-O {[%emt 0:00:04]} 9. Qe2 {[%emt 0:00:10]} b6 {[%emt 0:00:39]} 10. Rd1 {[%emt 0:00:27]} Bb7 {[%emt 0:01:34]} 11. Bxd5 {[%emt 0:00:19]} exd5 {[%emt 0:00:04]} 12. Nc3 {[%emt 0:10:06]} Na6 {[%emt 0:00:19]} 13. Bf4 {[%emt 0:04:58]} Nc7 {[%emt 0:00:20]} 14. exd6 {[%emt 0:24:29]} Bxd6 {[%emt 0:00:04]} 15. Bxd6 {[%emt 0:00:05]} Qxd6 {[%emt 0:00:03]} 16. Qe5 $146 {[%emt 0:00:05]} Qd7 {[%emt 0:06:12]} 17. Qh5 {[%emt 0:03:59]} f6 {[%emt 0:00:50]} 18. Re1 {[%emt 0:06:48]} Rfe8 {[%emt 0:12:17]} 19. Rxe8+ {[%emt 0:04:21]} Rxe8 {[%emt 0:00:04]} 20. Re1 {[%emt 0:00:09]} g6 {[%emt 0:23:47]} 21. Qh6 {[%emt 0:00:56]} Ne6 {[%emt 0:15:14]} 22. Qd2 {[%emt 0:00:17]} Bc6 {[%emt 0:03:23]} 23. h3 {[%emt 0:00:35]} Qd6 {[%emt 0:00:11]} 24. Re3 {[%emt 0:04:52]} Rc8 {[%emt 0:02:34]} 25. Nh2 {[%emt 0:11:32]} h5 {[%emt 0:03:22]} 26. Nf3 {[%emt 0:02:37]} Be8 {[%emt 0:00:31]} 27. Ne2 {[%emt 0:02:03]} Kg7 {[%emt 0:07:18]} 28. Rc3 {[%emt 0:01:26]} Rxc3 {[%emt 0:00:32]} 29. Qxc3 {[%emt 0:00:15]} Bb5 {[%emt 0:00:26]} 30. Qe3 {[%emt 0:05:11]} Bxe2 {[%emt 0:00:40]} 31. Qxe2 {[%emt 0:00:04]} Qc6 {[%emt 0:00:25]} 32. Qd2 {[%emt 0:00:42]} Qc4 {[%emt 0:02:16]} 33. b3 {[%emt 0:03:47]} Qc7 {[%emt 0:00:07]} 34. g3 {[%emt 0:00:07]} Kf7 {[%emt 0:07:16]} 35. Ne1 {[%emt 0:00:55]} Qe7 {[%emt 0:03:25]} 36. Nf3 {[%emt 0:01:02]} Qc7 {[%emt 0:01:58]} 37. h4 {[%emt 0:00:33]} Ng7 {[%emt 0:01:53]} 38. Ne1 {[%emt 0:02:42]} Nf5 {[%emt 0:00:11]} 39. Nc2 {[%emt 0:00:07]} Qe7 {[%emt 0:07:47]} 40. Ne3 {[%emt 0:01:34]} Nxe3 {[%emt 0:00:33]} 41. fxe3 {[%emt 0:34:42]} Qc7 {[%emt 0:31:39]} 42. Kg2 {[%emt 0:03:34]} Kg7 {[%emt 0:00:00]} 43. Kf2 {[%emt 0:00:00]} b5 {[%emt 0:00:00]} 44. Qb4 {[%emt 0:00:00]} Qc2+ {[%emt 0:00:00]} 45. Kf3 {[%emt 0:00:00]} Qd1+ {[%emt 0:00:00]} 46. Kf2 {[%emt 0:00:00]} Qc2+ $11 {[%emt 0:00:00]} 47. Kf3 {[%emt 0:00:00]} Qd1+ {[%emt 0:00:00]} 48. Kf2 {[%emt 0:00:00]} 1/2-1/2

[Event "FRA-ch Women 2018"]
[Site "Nimes"]
[Date "2018.08.26"]
[Round "9"]
[White "Haussernot, Cecile"]
[Black "Bollengier, Andreea"]
[Result "1-0"]
[ECO "C15"]
[WhiteElo "2198"]
[BlackElo "2219"]
[Annotator "NA"]
[PlyCount "59"]
[EventDate "2018.08.18"]
[EventType "tourn"]
[EventCountry "FRA"]
[SourceTitle "playchess.com"]
[Source "ChessBase"]
[SourceQuality "1"]
[TimeControl "40/5400+30:1800+30"]

1. e4 {[%emt 0:03:57]} e6 {[%emt 0:00:00]} 2. d4 {[%emt 0:00:19]} d5 {[%emt 0:00:07]} 3. Nc3 {[%emt 0:00:13]} Bb4 {[%emt 0:00:12]} 4. Nge2 {[%emt 0:01:30]} dxe4 {[%emt 0:00:26]} 5. a3 {[%emt 0:00:06]} Bxc3+ {[%emt 0:00:07]} 6. Nxc3 {[%emt 0:00:03]} Nc6 {[%emt 0:00:12]} 7. Bb5 {[%emt 0:00:10]} Nge7 {[%emt 0:00:13]} 8. Bg5 {[%emt 0:00:41]} f6 {[%emt 0:00:34]} 9. Be3 {[%emt 0:00:12]} O-O {[%emt 0:01:23]} 10. Qd2 {[%emt 0:00:37]} f5 {[%emt 0:00:58]} 11. O-O-O {[%emt 0:02:30]} a6 {[%emt 0:00:25]} 12. Bxc6 {[%emt 0:08:42]} Nxc6 {[%emt 0:00:08]} 13. f3 {[%emt 0:00:59]} exf3 {[%emt 0:04:27]} 14. gxf3 {[%emt 0:00:22] C15: French: 3 Nc3 Bb4: Unusual White 4th moves} e5 {[%emt 0:01:53] LiveBook: 14 Games} 15. d5 {[%emt 0:01:23]} Ne7 {[%emt 0:08:57]} 16. f4 {[%emt 0:02:23]} e4 $146 {[%emt 0:04:11] [#]} ({Predecessor:} 16... exf4 $11 {remains equal.} 17. Bxf4 Ng6 18. Bg5 Qd6 19. h4 h6 20. h5 hxg5 21. hxg6 Qxg6 {½-½ (33) Ginzburg,Y (2406)-Gorovykh,E (2447) Irkutsk 2010}) 17. h4 $1 {[%emt 0:01:17]} Rf7 {[%emt 0:14:17]} 18. h5 {[%emt 0:03:58]} h6 {[%emt 0:05:40]} 19. Rhg1 {[%emt 0:00:50]} Kf8 {[%emt 0:06:22]} 20. Qg2 {[%emt 0:07:37]} Ng8 {[%emt 0:08:18]} 21. Bc5+ {[%emt 0:10:32]} Ke8 {[%emt 0:00:07]} 22. Qg6 {[%emt 0:06:45]} b6 {[%emt 0:05:13]} 23. Bd4 {[%emt 0:05:42]} Qd6 {[%emt 0:08:25]} 24. Qh7 {[%emt 0:02:56]} Nf6 {[%emt 0:03:20]} 25. Bxf6 {[%emt 0:00:51]} Qxf6 {[%emt 0:02:25]} 26. Rg6 {[%emt 0:00:18]} Qh4 {[%emt 0:04:13]} 27. Qg8+ {[%emt 0:04:11]} Rf8 {[%emt 0:01:21]} 28. Qxg7 {[%emt 0:00:07]} Bd7 {[%emt 0:11:10]} 29. d6 {[%emt 0:01:10]} c6 {[%emt 0:05:41] [#]} 30. Re6+ {[%emt 0:00:58]} 1-0